[Event "Titled Tuesday Blitz December 27 Early 2022"]
[White "Chigaev, Maksim"]
[Black "Bryakin, Mikhail"]
[WhiteFideId "4108116"]
[BlackFideId "4165314"]
[WhiteElo "2628"]
[BlackElo "2455"]
[Result "1-0"]
[Round "07"]
[TimeControl "180+2"]
[Date "2022.12.27"]
[WhiteClock "0:00:08"]
[BlackClock "0:00:08"]

1. e4 {[%clk 0:03:00]}  c6 {[%clk 0:03:00]} 2. d4 {[%clk 0:03:01]}  d5 {[%clk 0:03:01]} 3. e5 {[%clk 0:03:02]}  c5 {[%clk 0:02:52]} 4. dxc5 {[%clk 0:03:00]}  e6 {[%clk 0:02:52]} 5. a3 {[%clk 0:02:55]}  Bxc5 {[%clk 0:02:52]} 6. Qg4 {[%clk 0:02:54]}  Ne7 {[%clk 0:02:45]} 7. Bd3 {[%clk 0:02:54]}  Ng6 {[%clk 0:02:44]} 8. Nf3 {[%clk 0:02:54]}  Nc6 {[%clk 0:02:43]} 9. O-O {[%clk 0:02:45]}  Qc7 {[%clk 0:02:36]} 10. Re1 {[%clk 0:02:34]}  Nce7 {[%clk 0:02:15]} 11. Qh5 {[%clk 0:02:14]}  Bd7 {[%clk 0:02:01]} 12. Nc3 {[%clk 0:02:05]}  O-O-O {[%clk 0:01:51]} 13. Ne2 {[%clk 0:01:55]}  Kb8 {[%clk 0:01:48]} 14. Ned4 {[%clk 0:01:41]}  a6 {[%clk 0:01:47]} 15. Be3 {[%clk 0:01:36]}  Bb6 {[%clk 0:01:36]} 16. c3 {[%clk 0:01:31]}  Rc8 {[%clk 0:01:32]} 17. h3 {[%clk 0:01:27]}  h6 {[%clk 0:01:30]} 18. Rac1 {[%clk 0:01:23]}  Qd8 {[%clk 0:01:28]} 19. Red1 {[%clk 0:01:12]}  Qe8 {[%clk 0:01:19]} 20. c4 {[%clk 0:00:58]}  dxc4 {[%clk 0:01:05]} 21. Bxc4 {[%clk 0:00:58]}  Bc7 {[%clk 0:01:01]} 22. Nb3 {[%clk 0:00:35]}  Bb5 {[%clk 0:00:58]} 23. Nc5 {[%clk 0:00:32]}  Rd8 {[%clk 0:00:49]} 24. Rxd8+ {[%clk 0:00:28]}  Bxd8 {[%clk 0:00:42]} 25. Qg4 {[%clk 0:00:20]}  Bb6 {[%clk 0:00:34]} 26. Nxa6+ {[%clk 0:00:17]}  Bxa6 {[%clk 0:00:29]} 27. Bxb6 {[%clk 0:00:17]}  Bxc4 {[%clk 0:00:22]} 28. Qxc4 {[%clk 0:00:17]}  Qc6 {[%clk 0:00:23]} 29. Bc5 {[%clk 0:00:12]}  Nc8 {[%clk 0:00:21]} 30. Qf1 {[%clk 0:00:07]}  Qd5 {[%clk 0:00:19]} 31. Be3 {[%clk 0:00:08]}  Rd8 {[%clk 0:00:19]} 32. b4 {[%clk 0:00:07]}  Nxe5 {[%clk 0:00:17]} 33. Nxe5 {[%clk 0:00:07]}  Qxe5 {[%clk 0:00:17]} 34. Qc4 {[%clk 0:00:07]}  Qd6 {[%clk 0:00:15]} 35. Bf4 {[%clk 0:00:07]}  e5 {[%clk 0:00:16]} 36. Be3 {[%clk 0:00:07]}  f6 {[%clk 0:00:16]} 37. a4 {[%clk 0:00:08]}  Ne7 {[%clk 0:00:13]} 38. a5 {[%clk 0:00:07]}  Nd5 {[%clk 0:00:12]} 39. Bc5 {[%clk 0:00:08]}  Qd7 {[%clk 0:00:11]} 40. b5 {[%clk 0:00:08]}  Nf4 {[%clk 0:00:10]} 41. Bb6 {[%clk 0:00:08]}  Re8 {[%clk 0:00:06]} 42. a6 {[%clk 0:00:08]}  bxa6 {[%clk 0:00:07]} 43. bxa6 {[%clk 0:00:08]}  Nd5 {[%clk 0:00:07]} 44. Bc5 {[%clk 0:00:07]}  Ka8 {[%clk 0:00:07]} 45. Rd1 {[%clk 0:00:04]}  Rd8 {[%clk 0:00:08]} 46. Qb3 {[%clk 0:00:04]}  Qc6 {[%clk 0:00:07]} 47. Be3 {[%clk 0:00:04]}  f5 {[%clk 0:00:07]} 48. Bb6 {[%clk 0:00:02]}  Rb8 {[%clk 0:00:05]} 49. Qxd5 {[%clk 0:00:02]}  Qxd5 {[%clk 0:00:05]} 50. Rxd5 {[%clk 0:00:03]}  Rxb6 {[%clk 0:00:05]} 51. Rxe5 {[%clk 0:00:04]}  Rf6 {[%clk 0:00:06]} 52. Ra5 {[%clk 0:00:03]}  Ka7 {[%clk 0:00:06]} 53. h4 {[%clk 0:00:04]}  g6 {[%clk 0:00:07]} 54. h5 {[%clk 0:00:04]}  gxh5 {[%clk 0:00:06]} 55. Kh2 {[%clk 0:00:05]}  Rxa6 {[%clk 0:00:05]} 56. Rxf5 {[%clk 0:00:04]}  Rg6 {[%clk 0:00:06]} 57. Rxh5 {[%clk 0:00:04]}  Kb6 {[%clk 0:00:07]} 58. Kh3 {[%clk 0:00:05]}  Kc6 {[%clk 0:00:08]} 59. g4 {[%clk 0:00:06]}  Kd6 {[%clk 0:00:08]} 60. Rf5 {[%clk 0:00:06]}  Ke7 {[%clk 0:00:08]} 61. Kh4 {[%clk 0:00:07]}  Ra6 {[%clk 0:00:07]} 62. Kh5 {[%clk 0:00:07]}  Re6 {[%clk 0:00:07]} 63. f3 {[%clk 0:00:07]}  Ke8 {[%clk 0:00:07]} 64. f4 {[%clk 0:00:07]}  Ke7 {[%clk 0:00:08]} 65. g5 {[%clk 0:00:07]}  hxg5 {[%clk 0:00:08]} 66. fxg5 {[%clk 0:00:08]}  Re1 {[%clk 0:00:07]} 67. g6 {[%clk 0:00:09]}  Ke6 {[%clk 0:00:07]} 68. Rf8 {[%clk 0:00:08]}  Rg1 {[%clk 0:00:07]} 69. Kh6 {[%clk 0:00:09]}  Ke7 {[%clk 0:00:08]} 70. Rf2 {[%clk 0:00:08]} 1-0


[Site "https://www.chess.com"]

[Event "Titled Tuesday Blitz December 27 Early 2022"]
[White "Costachi, Mihnea"]
[Black "Slade, Theodore"]
[WhiteFideId "1217518"]
[BlackFideId "426547"]
[WhiteElo "2476"]
[BlackElo "1995"]
[Result "1-0"]
[Round "07"]
[TimeControl "180+2"]
[Date "2022.12.27"]
[WhiteClock "0:01:49"]
[BlackClock "0:00:03"]

1. e4 {[%clk 0:03:00]}  e5 {[%clk 0:03:00]} 2. f4 {[%clk 0:03:00]}  exf4 {[%clk 0:03:00]} 3. Nf3 {[%clk 0:03:00]}  g5 {[%clk 0:03:00]} 4. d4 {[%clk 0:02:59]}  Bg7 {[%clk 0:02:58]} 5. h4 {[%clk 0:02:50]}  h6 {[%clk 0:02:55]} 6. Nc3 {[%clk 0:02:44]}  d6 {[%clk 0:02:53]} 7. Bc4 {[%clk 0:02:44]}  Be6 {[%clk 0:02:47]} 8. Qd3 {[%clk 0:02:24]}  Nd7 {[%clk 0:02:26]} 9. Bxe6 {[%clk 0:02:20]}  fxe6 {[%clk 0:02:26]} 10. e5 {[%clk 0:02:20]}  Kf7 {[%clk 0:01:56]} 11. hxg5 {[%clk 0:02:14]}  hxg5 {[%clk 0:01:56]} 12. Rxh8 {[%clk 0:02:15]}  Bxh8 {[%clk 0:01:56]} 13. Ne4 {[%clk 0:02:16]}  Ke7 {[%clk 0:00:11]} 14. Nexg5 {[%clk 0:02:11]}  Qf8 {[%clk 0:00:06]} 15. Qg6 {[%clk 0:02:07]}  Qf5 {[%clk 0:00:06]} 16. Nh4 {[%clk 0:01:55]}  Rf8 {[%clk 0:00:02]} 17. Nxf5+ {[%clk 0:01:54]}  exf5 {[%clk 0:00:02]} 18. Qh7+ {[%clk 0:01:50]}  Kd8 {[%clk 0:00:01]} 19. Ne6+ {[%clk 0:01:50]}  Ke8 {[%clk 0:00:02]} 20. Nxf8 {[%clk 0:01:50]}  Kd8 {[%clk 0:00:03]} 21. Qxd7# {[%clk 0:01:49]} 1-0


[Site "https://www.chess.com"]

[Event "Titled Tuesday Blitz December 27 Early 2022"]
[White "De Souza, Cristiano Gomes"]
[Black "Adel, Sara"]
[WhiteFideId "2151758"]
[BlackFideId "10616764"]
[WhiteElo "2018"]
[BlackElo "1739"]
[Result "0-1"]
[Round "07"]
[TimeControl "180+2"]
[Date "2022.12.27"]
[WhiteClock "0:00:51"]
[BlackClock "0:00:10"]

1. d4 {[%clk 0:03:00]}  Nf6 {[%clk 0:02:59]} 2. c4 {[%clk 0:03:00]}  g6 {[%clk 0:03:00]} 3. Nc3 {[%clk 0:03:00]}  Bg7 {[%clk 0:02:59]} 4. e4 {[%clk 0:03:00]}  d6 {[%clk 0:02:59]} 5. Nf3 {[%clk 0:03:00]}  Nc6 {[%clk 0:02:55]} 6. Be2 {[%clk 0:03:00]}  e5 {[%clk 0:02:55]} 7. d5 {[%clk 0:03:01]}  Ne7 {[%clk 0:02:55]} 8. O-O {[%clk 0:03:02]}  O-O {[%clk 0:02:56]} 9. Ne1 {[%clk 0:02:59]}  Ne8 {[%clk 0:02:55]} 10. Be3 {[%clk 0:03:00]}  f5 {[%clk 0:02:56]} 11. f3 {[%clk 0:03:01]}  f4 {[%clk 0:02:56]} 12. Bf2 {[%clk 0:03:01]}  g5 {[%clk 0:02:57]} 13. Nd3 {[%clk 0:03:01]}  h5 {[%clk 0:02:57]} 14. c5 {[%clk 0:03:01]}  Ng6 {[%clk 0:02:57]} 15. a4 {[%clk 0:02:58]}  Rf7 {[%clk 0:02:44]} 16. Nb5 {[%clk 0:02:54]}  a6 {[%clk 0:02:42]} 17. Na3 {[%clk 0:02:50]}  Bf8 {[%clk 0:02:35]} 18. Qb3 {[%clk 0:02:50]}  g4 {[%clk 0:02:30]} 19. Nc4 {[%clk 0:02:47]}  Qg5 {[%clk 0:02:20]} 20. Rfc1 {[%clk 0:02:35]}  g3 {[%clk 0:02:17]} 21. hxg3 {[%clk 0:02:28]}  fxg3 {[%clk 0:02:18]} 22. Be3 {[%clk 0:02:28]}  Qh4 {[%clk 0:02:18]} 23. Kf1 {[%clk 0:02:27]}  Qh1+ {[%clk 0:01:52]} 24. Bg1 {[%clk 0:02:25]}  Nh4 {[%clk 0:01:50]} 25. Ne1 {[%clk 0:02:07]}  Bh3 {[%clk 0:01:42]} 26. Qe3 {[%clk 0:01:42]}  Nxg2 {[%clk 0:01:36]} 27. Nxg2 {[%clk 0:01:42]}  Qxg2+ {[%clk 0:01:24]} 28. Ke1 {[%clk 0:01:42]}  Kh7 {[%clk 0:00:48]} 29. cxd6 {[%clk 0:01:23]}  Bh6 {[%clk 0:00:47]} 30. Qc5 {[%clk 0:01:23]}  cxd6 {[%clk 0:00:45]} 31. Qb6 {[%clk 0:01:20]}  Bxc1 {[%clk 0:00:26]} 32. Rxc1 {[%clk 0:01:19]}  Rc8 {[%clk 0:00:24]} 33. Be3 {[%clk 0:01:17]}  Qh2 {[%clk 0:00:19]} 34. Kd2 {[%clk 0:01:16]}  g2 {[%clk 0:00:18]} 35. Bg1 {[%clk 0:01:09]}  Qf4+ {[%clk 0:00:17]} 36. Be3 {[%clk 0:01:08]}  Qf6 {[%clk 0:00:18]} 37. Bd3 {[%clk 0:01:01]}  Rfc7 {[%clk 0:00:17]} 38. f4 {[%clk 0:01:00]}  exf4 {[%clk 0:00:17]} 39. e5+ {[%clk 0:01:00]}  Qf5 {[%clk 0:00:14]} 40. Bxf5+ {[%clk 0:01:00]}  Bxf5 {[%clk 0:00:15]} 41. Bxf4 {[%clk 0:00:57]}  Rxc4 {[%clk 0:00:15]} 42. Rxc4 {[%clk 0:00:57]}  Rxc4 {[%clk 0:00:15]} 43. Qxb7+ {[%clk 0:00:57]}  Kg6 {[%clk 0:00:14]} 44. Qe7 {[%clk 0:00:55]}  Rc2+ {[%clk 0:00:12]} 45. Ke3 {[%clk 0:00:50]}  g1=Q+ {[%clk 0:00:13]} 46. Kf3 {[%clk 0:00:51]}  Qf2# {[%clk 0:00:10]} 0-1


[Site "https://www.chess.com"]

[Event "Titled Tuesday Blitz December 27 Early 2022"]
[White "Demidov, Mikhail"]
[Black "Alex_Sahakyan2006"]
[WhiteFideId "4197143"]
[WhiteElo "2583"]
[BlackElo "2629"]
[Result "0-1"]
[Round "07"]
[TimeControl "180+2"]
[Date "2022.12.27"]
[WhiteClock "0:00:02"]
[BlackClock "0:00:11"]

1. Nf3 {[%clk 0:03:00]}  g6 {[%clk 0:02:58]} 2. g3 {[%clk 0:02:59]}  Bg7 {[%clk 0:02:57]} 3. Bg2 {[%clk 0:03:00]}  e5 {[%clk 0:02:58]} 4. d3 {[%clk 0:02:59]}  d5 {[%clk 0:02:57]} 5. O-O {[%clk 0:03:00]}  Nc6 {[%clk 0:02:58]} 6. e4 {[%clk 0:03:00]}  Nge7 {[%clk 0:02:57]} 7. exd5 {[%clk 0:03:01]}  Nxd5 {[%clk 0:02:58]} 8. Nc3 {[%clk 0:03:01]}  Nxc3 {[%clk 0:02:53]} 9. bxc3 {[%clk 0:03:01]}  O-O {[%clk 0:02:53]} 10. Re1 {[%clk 0:03:01]}  h6 {[%clk 0:02:49]} 11. Rb1 {[%clk 0:03:01]}  Rb8 {[%clk 0:02:49]} 12. Nd2 {[%clk 0:03:00]}  Be6 {[%clk 0:02:49]} 13. a4 {[%clk 0:02:58]}  Bd5 {[%clk 0:02:46]} 14. Rb5 {[%clk 0:02:44]}  Bxg2 {[%clk 0:02:44]} 15. Kxg2 {[%clk 0:02:45]}  a6 {[%clk 0:02:43]} 16. Rb3 {[%clk 0:02:43]}  Re8 {[%clk 0:02:39]} 17. Qf3 {[%clk 0:02:43]}  f5 {[%clk 0:02:38]} 18. Nc4 {[%clk 0:02:38]}  Qd7 {[%clk 0:02:36]} 19. Rd1 {[%clk 0:02:20]}  b5 {[%clk 0:02:26]} 20. axb5 {[%clk 0:02:18]}  axb5 {[%clk 0:02:27]} 21. Ne3 {[%clk 0:02:17]}  Ne7 {[%clk 0:02:28]} 22. Ba3 {[%clk 0:02:14]}  c6 {[%clk 0:02:25]} 23. Bxe7 {[%clk 0:02:12]}  Rxe7 {[%clk 0:02:23]} 24. c4 {[%clk 0:02:12]}  Rd8 {[%clk 0:01:55]} 25. cxb5 {[%clk 0:02:08]}  cxb5 {[%clk 0:01:56]} 26. Rdb1 {[%clk 0:02:08]}  e4 {[%clk 0:01:46]} 27. dxe4 {[%clk 0:02:07]}  fxe4 {[%clk 0:01:47]} 28. Qe2 {[%clk 0:02:07]}  Qd2 {[%clk 0:01:48]} 29. Qxb5 {[%clk 0:02:00]}  Rf7 {[%clk 0:01:43]} 30. Rf1 {[%clk 0:01:50]}  Bd4 {[%clk 0:01:23]} 31. Qc4 {[%clk 0:01:39]}  Rf8 {[%clk 0:01:20]} 32. Kh3 {[%clk 0:00:58]}  Bg7 {[%clk 0:00:51]} 33. Qxe4 {[%clk 0:00:44]}  Rxf2 {[%clk 0:00:50]} 34. Rxf2 {[%clk 0:00:43]}  Rxf2 {[%clk 0:00:51]} 35. Rb8+ {[%clk 0:00:36]}  Kh7 {[%clk 0:00:50]} 36. Ng4 {[%clk 0:00:34]}  Rf5 {[%clk 0:00:43]} 37. Ne3 {[%clk 0:00:14]}  Re5 {[%clk 0:00:43]} 38. Qc4 {[%clk 0:00:12]}  h5 {[%clk 0:00:22]} 39. Nf1 {[%clk 0:00:06]}  Qf2 {[%clk 0:00:18]} 40. Qf4 {[%clk 0:00:02]}  Qe2 {[%clk 0:00:11]} 0-1


[Site "https://www.chess.com"]

[Event "Titled Tuesday Blitz December 27 Early 2022"]
[White "Donskov, Anatoly"]
[Black "Galchenko, Matvey"]
[WhiteFideId "24143413"]
[BlackFideId "24175480"]
[WhiteElo "2279"]
[BlackElo "2438"]
[Result "0-1"]
[Round "07"]
[TimeControl "180+2"]
[Date "2022.12.27"]
[WhiteClock "0:00:05"]
[BlackClock "0:00:09"]

1. e4 {[%clk 0:03:00]}  e6 {[%clk 0:02:58]} 2. d4 {[%clk 0:03:00]}  d5 {[%clk 0:02:59]} 3. Nc3 {[%clk 0:03:01]}  Bb4 {[%clk 0:02:59]} 4. Bd3 {[%clk 0:03:00]}  dxe4 {[%clk 0:02:56]} 5. Bxe4 {[%clk 0:03:01]}  Nf6 {[%clk 0:02:57]} 6. Bd3 {[%clk 0:03:01]}  c5 {[%clk 0:02:54]} 7. a3 {[%clk 0:03:01]}  Ba5 {[%clk 0:02:50]} 8. dxc5 {[%clk 0:02:58]}  Bxc3+ {[%clk 0:02:49]} 9. bxc3 {[%clk 0:02:59]}  Nbd7 {[%clk 0:02:50]} 10. c6 {[%clk 0:02:54]}  bxc6 {[%clk 0:02:50]} 11. a4 {[%clk 0:02:45]}  Qa5 {[%clk 0:02:39]} 12. Ne2 {[%clk 0:02:45]}  O-O {[%clk 0:02:26]} 13. O-O {[%clk 0:02:43]}  Ba6 {[%clk 0:02:27]} 14. c4 {[%clk 0:01:41]}  Rfd8 {[%clk 0:02:20]} 15. Bb2 {[%clk 0:01:39]}  Rab8 {[%clk 0:02:18]} 16. Bc3 {[%clk 0:01:38]}  Qg5 {[%clk 0:02:15]} 17. Ng3 {[%clk 0:01:31]}  Nb6 {[%clk 0:01:49]} 18. Qe2 {[%clk 0:01:30]}  c5 {[%clk 0:01:47]} 19. f4 {[%clk 0:01:23]}  Qh4 {[%clk 0:01:43]} 20. a5 {[%clk 0:01:04]}  Ng4 {[%clk 0:01:00]} 21. h3 {[%clk 0:01:04]}  Qxg3 {[%clk 0:01:00]} 22. hxg4 {[%clk 0:00:57]}  Nd7 {[%clk 0:00:54]} 23. Rf3 {[%clk 0:00:49]}  Qxg4 {[%clk 0:00:49]} 24. Bxh7+ {[%clk 0:00:49]}  Kf8 {[%clk 0:00:48]} 25. Bd3 {[%clk 0:00:39]}  Bb7 {[%clk 0:00:44]} 26. Be4 {[%clk 0:00:22]}  Bxe4 {[%clk 0:00:40]} 27. Qxe4 {[%clk 0:00:23]}  Qf5 {[%clk 0:00:37]} 28. Qe2 {[%clk 0:00:20]}  Nf6 {[%clk 0:00:36]} 29. Be5 {[%clk 0:00:17]}  Rb7 {[%clk 0:00:31]} 30. Rg3 {[%clk 0:00:16]}  Rbd7 {[%clk 0:00:20]} 31. Rg5 {[%clk 0:00:15]}  Qe4 {[%clk 0:00:19]} 32. Qxe4 {[%clk 0:00:16]}  Nxe4 {[%clk 0:00:20]} 33. Rxg7 {[%clk 0:00:16]}  Rd1+ {[%clk 0:00:19]} 34. Rxd1 {[%clk 0:00:17]}  Rxd1+ {[%clk 0:00:20]} 35. Kh2 {[%clk 0:00:17]}  f6 {[%clk 0:00:21]} 36. Rxa7 {[%clk 0:00:14]}  fxe5 {[%clk 0:00:21]} 37. fxe5 {[%clk 0:00:14]}  Ra1 {[%clk 0:00:22]} 38. a6 {[%clk 0:00:15]}  Ng5 {[%clk 0:00:21]} 39. Rc7 {[%clk 0:00:14]}  Rxa6 {[%clk 0:00:20]} 40. Rxc5 {[%clk 0:00:14]}  Kf7 {[%clk 0:00:20]} 41. Rc7+ {[%clk 0:00:14]}  Kg6 {[%clk 0:00:20]} 42. c5 {[%clk 0:00:14]}  Kf5 {[%clk 0:00:20]} 43. Rg7 {[%clk 0:00:12]}  Ne4 {[%clk 0:00:18]} 44. g4+ {[%clk 0:00:11]}  Kxe5 {[%clk 0:00:18]} 45. Rc7 {[%clk 0:00:11]}  Ra2 {[%clk 0:00:17]} 46. Kh3 {[%clk 0:00:09]}  Rxc2 {[%clk 0:00:17]} 47. c6 {[%clk 0:00:09]}  Rc1 {[%clk 0:00:16]} 48. Rc8 {[%clk 0:00:09]}  Nd6 {[%clk 0:00:15]} 49. Rc7 {[%clk 0:00:08]}  Ne4 {[%clk 0:00:10]} 50. Rc8 {[%clk 0:00:08]}  Rc3+ {[%clk 0:00:10]} 51. Kh4 {[%clk 0:00:08]}  Rc4 {[%clk 0:00:10]} 52. Kh5 {[%clk 0:00:08]}  Nf6+ {[%clk 0:00:10]} 53. Kg6 {[%clk 0:00:08]}  Nxg4 {[%clk 0:00:11]} 54. Kf7 {[%clk 0:00:09]}  Ne3 {[%clk 0:00:10]} 55. Ke7 {[%clk 0:00:07]}  Nd5+ {[%clk 0:00:10]} 56. Kd8 {[%clk 0:00:07]}  Kd6 {[%clk 0:00:09]} 57. c7 {[%clk 0:00:05]}  Rxc7 {[%clk 0:00:09]} 58. Ra8 {[%clk 0:00:05]}  Rd7+ {[%clk 0:00:08]} 59. Ke8 {[%clk 0:00:05]}  Nc7+ {[%clk 0:00:09]} 0-1


[Site "https://www.chess.com"]

[Event "Titled Tuesday Blitz December 27 Early 2022"]
[White "Estrada Nieto, Julian"]
[Black "Makhmudov, Shukhrat"]
[WhiteFideId "5101018"]
[BlackFideId "14200775"]
[WhiteElo "2215"]
[BlackElo "2115"]
[Result "0-1"]
[Round "07"]
[TimeControl "180+2"]
[Date "2022.12.27"]
[WhiteClock "0:00:10"]
[BlackClock "0:00:13"]

1. e4 {[%clk 0:03:00]}  e5 {[%clk 0:02:59]} 2. Nf3 {[%clk 0:03:00]}  Nc6 {[%clk 0:02:49]} 3. Bb5 {[%clk 0:03:00]}  a6 {[%clk 0:02:45]} 4. Bxc6 {[%clk 0:03:00]}  dxc6 {[%clk 0:02:46]} 5. O-O {[%clk 0:03:01]}  Bg4 {[%clk 0:02:46]} 6. h3 {[%clk 0:03:00]}  h5 {[%clk 0:02:46]} 7. d3 {[%clk 0:03:00]}  Qf6 {[%clk 0:02:46]} 8. Be3 {[%clk 0:03:00]}  Bxf3 {[%clk 0:02:46]} 9. Qxf3 {[%clk 0:03:01]}  Qxf3 {[%clk 0:02:47]} 10. gxf3 {[%clk 0:03:01]}  Bd6 {[%clk 0:02:47]} 11. Nd2 {[%clk 0:03:02]}  Ne7 {[%clk 0:02:48]} 12. Rfd1 {[%clk 0:03:01]}  Ng6 {[%clk 0:02:48]} 13. Kf1 {[%clk 0:03:01]}  c5 {[%clk 0:02:48]} 14. Ke2 {[%clk 0:03:00]}  b6 {[%clk 0:02:48]} 15. Nc4 {[%clk 0:02:54]}  a5 {[%clk 0:02:48]} 16. a4 {[%clk 0:02:53]}  Kd7 {[%clk 0:02:46]} 17. Rg1 {[%clk 0:02:53]}  Ke6 {[%clk 0:02:46]} 18. Rg5 {[%clk 0:02:51]}  Be7 {[%clk 0:02:44]} 19. Rg2 {[%clk 0:02:42]}  Bf6 {[%clk 0:02:45]} 20. Rag1 {[%clk 0:02:32]}  Rad8 {[%clk 0:02:42]} 21. c3 {[%clk 0:02:30]}  Rd7 {[%clk 0:02:42]} 22. Rd1 {[%clk 0:02:30]}  Rhd8 {[%clk 0:02:41]} 23. Rgg1 {[%clk 0:02:30]}  Ke7 {[%clk 0:02:23]} 24. Rd2 {[%clk 0:02:27]}  Nf8 {[%clk 0:02:15]} 25. f4 {[%clk 0:02:18]}  exf4 {[%clk 0:02:13]} 26. Bxf4 {[%clk 0:02:17]}  Ne6 {[%clk 0:02:12]} 27. Be3 {[%clk 0:02:17]}  g6 {[%clk 0:02:08]} 28. f4 {[%clk 0:02:15]}  Bh8 {[%clk 0:02:06]} 29. Rdd1 {[%clk 0:02:06]}  Bf6 {[%clk 0:01:58]} 30. f5 {[%clk 0:01:53]}  gxf5 {[%clk 0:01:57]} 31. exf5 {[%clk 0:01:54]}  Ng7 {[%clk 0:01:56]} 32. Rdf1 {[%clk 0:01:32]}  Rxd3 {[%clk 0:01:35]} 33. Rf3 {[%clk 0:01:27]}  R3d5 {[%clk 0:01:31]} 34. Rgf1 {[%clk 0:01:25]}  h4 {[%clk 0:01:26]} 35. Bh6 {[%clk 0:01:20]}  Nh5 {[%clk 0:01:25]} 36. Bf4 {[%clk 0:01:14]}  Kd7 {[%clk 0:01:18]} 37. Bh2 {[%clk 0:01:10]}  Re8+ {[%clk 0:01:12]} 38. Re3 {[%clk 0:01:08]}  Ng3+ {[%clk 0:01:00]} 39. Bxg3 {[%clk 0:01:06]}  hxg3 {[%clk 0:01:00]} 40. Rxe8 {[%clk 0:01:03]}  Kxe8 {[%clk 0:01:00]} 41. Ne3 {[%clk 0:01:03]}  Re5 {[%clk 0:00:54]} 42. Kf3 {[%clk 0:00:55]}  Bg5 {[%clk 0:00:37]} 43. Re1 {[%clk 0:00:55]}  Ke7 {[%clk 0:00:16]} 44. Nd5+ {[%clk 0:00:51]}  Kd6 {[%clk 0:00:16]} 45. Rxe5 {[%clk 0:00:51]}  Kxe5 {[%clk 0:00:16]} 46. Nxc7 {[%clk 0:00:46]}  Bh4 {[%clk 0:00:12]} 47. f6 {[%clk 0:00:39]}  Kd6 {[%clk 0:00:10]} 48. Nb5+ {[%clk 0:00:33]}  Ke6 {[%clk 0:00:10]} 49. Nc7+ {[%clk 0:00:29]}  Kd6 {[%clk 0:00:10]} 50. Nb5+ {[%clk 0:00:23]}  Ke5 {[%clk 0:00:10]} 51. Nc7 {[%clk 0:00:16]}  Kxf6 {[%clk 0:00:11]} 52. Nd5+ {[%clk 0:00:15]}  Ke5 {[%clk 0:00:11]} 53. Nxb6 {[%clk 0:00:16]}  f5 {[%clk 0:00:11]} 54. Nc4+ {[%clk 0:00:15]}  Kd5 {[%clk 0:00:11]} 55. Ne3+ {[%clk 0:00:15]}  Ke6 {[%clk 0:00:12]} 56. Ng2 {[%clk 0:00:14]}  Bg5 {[%clk 0:00:09]} 57. Kxg3 {[%clk 0:00:14]}  Bc1 {[%clk 0:00:10]} 58. b3 {[%clk 0:00:14]}  Bd2 {[%clk 0:00:10]} 59. Nf4+ {[%clk 0:00:13]}  Ke5 {[%clk 0:00:09]} 60. Ne2 {[%clk 0:00:13]}  Ke4 {[%clk 0:00:08]} 61. h4 {[%clk 0:00:12]}  f4+ {[%clk 0:00:08]} 62. Kf2 {[%clk 0:00:12]}  f3 {[%clk 0:00:07]} 63. Ng3+ {[%clk 0:00:11]}  Kf4 {[%clk 0:00:07]} 64. c4 {[%clk 0:00:11]}  Be1+ {[%clk 0:00:07]} 65. Kxe1 {[%clk 0:00:10]}  Kxg3 {[%clk 0:00:07]} 66. Kf1 {[%clk 0:00:10]}  Kxh4 {[%clk 0:00:08]} 67. Kf2 {[%clk 0:00:10]}  Kg4 {[%clk 0:00:08]} 68. Kf1 {[%clk 0:00:10]}  Kf4 {[%clk 0:00:09]} 69. Kf2 {[%clk 0:00:10]}  Ke4 {[%clk 0:00:09]} 70. Kf1 {[%clk 0:00:09]}  Ke3 {[%clk 0:00:09]} 71. Ke1 {[%clk 0:00:09]}  f2+ {[%clk 0:00:10]} 72. Kf1 {[%clk 0:00:09]}  Kf3 {[%clk 0:00:10]} 73. b4 {[%clk 0:00:08]}  cxb4 {[%clk 0:00:11]} 74. c5 {[%clk 0:00:09]}  b3 {[%clk 0:00:12]} 75. c6 {[%clk 0:00:09]}  b2 {[%clk 0:00:12]} 76. c7 {[%clk 0:00:10]}  b1=Q# {[%clk 0:00:13]} 0-1


[Site "https://www.chess.com"]